Cogmind - Beta 14 @@@ ROGUE MODE // 2025.03.04 @ 20:44:32 Player: TryingToLearn Result: Destroyed by G-34 Mercenary with Small Laser Performance ------------- Evolutions (1) 500 Regions Visited (4) 800 Robots Destroyed (62) 310 Value Destroyed (1446) 1446 Prototype IDs (1) 20 Alien Tech Used (0) 0 Bonus (155) 155 TOTAL SCORE: 3231 Bonus ------- High Alert Combat Kills 120 Follower Combat Kills 35 Cogmind --------- Core Integrity 0/400 Matter 183/300 Energy 140/140 System Corruption 0% Temperature Cool (6) Movement Rolling (110) Ox2 Location -9/Mines Parts ------- > --- POWER (1) -------- Light Deuterium Engine > --- PROPULSION (2) --- Wheel > --- UTILITY (4) ------ Medium Storage Unit Structural Scanner Transport Network Coupler Light Armor Plating > --- WEAPON (2) ------- Heavy Assault Rifle > --- INVENTORY (10) --- Deuterium Engine Compact Wheel Flight Unit VTOL Module Improved Heat Sink High-capacity Matter Pod (0) Recalibrator Improved Medium Laser Heavy Assault Rifle Mining Laser Peak State ------------ > --- POWER ------------ Heavy Ion Engine > --- PROPULSION ------- Light Treads Light Treads > --- UTILITY ---------- Small Storage Unit High-capacity Matter Pod Light Armor Plating Field Recycling Unit > --- WEAPON ----------- Particle Gun Rocket Launcher > --- INVENTORY -------- Light Nuclear Core Wheel Compact Wheel VTOL Module Assault Rifle Rocket Launcher Rocket Launcher EMP Trap [Rating: 15] Favorites ----------- Power Light Nuclear Core Engine Light Deuterium Engine Power Core Light Nuclear Core Propulsion Light Treads Treads Light Treads Wheel Wheel Utility Small Storage Unit Device Structural Scanner Storage Small Storage Unit Processor Transport Network Coupler Protection Propulsion Shielding Weapon Heavy Assault Rifle Energy Gun Particle Gun Ballistic Gun Heavy Assault Rifle Launcher Grenade Launcher Build | -11 -10 -10 -9 -9 ------- Run | Yrd Mat Min Mat Min Slots Evolved 2 | . . . 2 . Power . | . . . . . Propulsion . | . . . . . Utility 2 | . . . 2 . Weapon . | . . . . . Parts Attached 58 | 6 3 2 44 3 Power 8 | 1 . 1 6 . Engine 6 | 1 . . 5 . Core 2 | . . 1 1 . Reactor . | . . . . . Propulsion 13 | 2 . . 10 1 Treads 11 | 2 . . 9 . Leg . | . . . . . Wheel 2 | . . . 1 1 Hover . | . . . . . Flight . | . . . . . Utility 15 | 1 1 . 13 . Device 4 | . . . 4 . Storage 5 | 1 . . 4 . Processor 2 | . . . 2 . Hackware . | . . . . . Protection 4 | . 1 . 3 . Artifact . | . . . . . Weapon 22 | 2 2 1 15 2 Energy Gun 2 | 1 . . 1 . Energy Cannon . | . . . . . Ballistic Gun 7 | 1 1 . 4 1 Ballistic Cannon . | . . . . . Launcher 13 | . 1 1 10 1 Special Weapon . | . . . . . Impact Weapon . | . . . . . Slashing Weapon . | . . . . . Piercing Weapon . | . . . . . Special Melee Weapon . | . . . . . Unidentified Prototypes 1 | . . . 1 . Parts Lost 10 | . . . 9 1 Power 2 | . . . 2 . Propulsion 2 | . . . 2 . Utility 2 | . . . 2 . Weapon 4 | . . . 3 1 Highest Loss Streak 3 | . . . 3 1 To Critical Strikes . | . . . . . Average Slot Usage (%) 92 | . 91 100 92 89 Engine 7 | . 14 1 7 11 Core 3 | . . 12 3 . Treads 20 | . 28 28 20 2 Wheel 1 | . . . . 9 Device 8 | . . . 11 11 Storage 16 | . 14 14 18 11 Processor 3 | . . . 3 11 Protection 7 | . 5 14 5 11 Energy Gun 1 | . 2 . 1 . Ballistic Gun 14 | . 19 15 12 21 Launcher 6 | . 6 12 6 . Peak Build Rating 15 | 6 7 9 15 14 Average Rating 11 | 4 6 8 12 13 On Entrance 7 | . 6 7 9 13 Naked Turns . | . . . . . Heaviest Build 35 | 14 16 16 35 25 Greatest Support 40 | 40 40 40 40 40 Greatest Overweight (x) 5 | . . . 5 2 Average Overweight (x) . | . . . . 1 Largest Inventory Capacity 10 | 8 8 8 10 10 Average Capacity 8 | 6 8 8 8 10 Most Carried 10 | 6 8 8 10 10 Average Carried 7 | 4 7 7 7 9 Final Capacity 10 | 8 8 8 10 10 Final Carried 10 | 6 8 8 9 10 Class Distribution -------------------- 57% | Mutant 42% | Scavenger-Mutant Dominant Class ---------------- Mutant | -10/Materials Mutant | -10/Mines Mutant | -9/Materials Scavenger-Mutant | -9/Mines Resources | -11 -10 -10 -9 -9 ----------- Run | Yrd Mat Min Mat Min Matter Collected 1424 | 204 160 95 732 233 Remotely . | . . . . . Salvage Created 1439 | . 165 99 1092 83 Parts 116 | . 10 8 96 2 Haulers Intercepted 5 | . 2 . 3 . Recyclers Shooed 6 | . 3 . 2 1 Parts Field Recycled 13 | . . . 13 . Retrieved Matter 63 | . . . 63 . Parts Self-Destructed . | . . . . . Prevented . | . . . . . Kills | -11 -10 -10 -9 -9 ------- Run | Yrd Mat Min Mat Min Combat Hostiles Destroyed 37 | . 5 4 27 1 Guns 13 | . 1 1 10 1 AOE 24 | . 4 3 17 . Classes Destroyed 9 | . 3 1 5 . Worker 6 | . . 2 2 2 Builder 9 | . . . 9 . Hauler 5 | . 2 . 3 . Mechanic 2 | . . . 2 . Watcher 3 | . . . 3 . Swarmer 7 | . 3 . 4 . Grunt 23 | . 2 4 16 1 Duelist 1 | . . . 1 . Sentry 6 | . . . 6 . Best Kill Streak 6 | . 3 4 6 2 Combat Bots Only 3 | . 3 2 3 1 Max Kills in Single Turn 5 | . 2 2 5 1 Gunslinging . | . . . . . Exploded 2 | . 1 1 2 . Melee . | . . . . . Uniques/NPCs Destroyed . | . . . . . Combat | -11 -10 -10 -9 -9 -------- Run | Yrd Mat Min Mat Min Hostile Shots Fired 238 | . 21 14 191 12 Missed 79 | . 9 1 63 6 Damage Taken 2222 | . 105 200 1816 101 Core 419 | . 11 . 386 22 Absorbed by Shields . | . . . . . Redirected to Shielding 27 | . . 24 3 . Regen/Repaired (Parts) 108 | . . . 108 . Core Remaining (%) 97 | 100 . 95 . . Volleys Fired 107 | . 9 6 83 9 Largest 2 | . 2 2 2 2 Hottest 98 | . 50 50 98 53 Shots Fired 190 | . 15 12 146 17 Gun 138 | . 10 6 106 16 Cannon . | . . . . . Launcher 52 | . 5 6 40 1 Special . | . . . . . Kinetic 109 | . 10 6 77 16 Thermal 29 | . . . 29 . Explosive 52 | . 5 6 40 1 Electromagnetic . | . . . . . Robot Hit Streak 13 | . 4 5 13 7 Robot Miss Streak 6 | . 1 1 6 2 Penetration Max . | . . . . . Secondary Targets . | . . . . . Shots Hit Robots 104 | . 4 5 86 9 Core Hits 97 | . 9 13 72 3 Critical Kills 1 | . . . 1 . Critical Parts Destroyed . | . . . . . Critical Strikes 1 | . . . 1 . Destroy 1 | . . . 1 . Melee Attacks . | . . . . . Impact . | . . . . . Slashing . | . . . . . Piercing . | . . . . . Sneak Attacks . | . . . . . Combat Hostiles . | . . . . . Follow-up Attacks . | . . . . . Damage Inflicted 4128 | . 504 355 3139 130 Guns 1246 | . 64 55 997 130 Cannons . | . . . . . Explosions 2870 | . 440 300 2130 . Melee . | . . . . . Ramming 12 | . . . 12 . Kinetic 914 | . 64 55 665 130 Thermal 332 | . . . 332 . Explosive 2870 | . 440 300 2130 . Electromagnetic . | . . . . . Impact . | . . . . . Slashing . | . . . . . Piercing . | . . . . . Highest Corruption . | . . . . . Average Corruption . | . . . . . Corruption Purged . | . . . . . Corruption Blocked . | . . . . . Overload Shots . | . . . . . Overflow Damage 76 | . 14 . 62 . Projectiles . | . . . . . Explosions 76 | . 14 . 62 . Melee . | . . . . . Knockbacks . | . . . . . Impact . | . . . . . Kinetic . | . . . . . Secondary . | . . . . . Self-Inflicted Damage 268 | . 2 28 208 30 Shots 13 | . 1 2 9 1 Rammed 2 | . . . 2 . Targets Rammed 2 | . . . 2 . Kicked . | . . . . . Crushed . | . . . . . Highest Temperature 333 | . 4 25 333 5 Average Temperature 99 | . 3 14 113 3 Received Heat Transfer 921 | . 24 96 762 39 Siege Activations . | . . . . . Robots Corrupted . | . . . . . Combat Hostiles . | . . . . . Parts Fried . | . . . . . Impact Corruptions . | . . . . . Robots Melted . | . . . . . Combat Hostiles . | . . . . . Parts Melted 2 | . . . 2 . Heat Transferred 777 | . . . 777 . Parts Sabotaged . | . . . . . Parts Stolen . | . . . . . Parts Stripped . | . . . . . Power Chain Reactions . | . . . . . Alert | -11 -10 -10 -9 -9 ------- Run | Yrd Mat Min Mat Min Peak Influence 846 | . 169 232 846 396 Initial 329 | . . 65 90 329 Average 314 | . 88 178 389 350 Maximum Alert Level 3 | . . 1 3 1 Low Security (%) 37 | 100 100 58 27 . Level 1 34 | . . 41 27 100 Level 2 19 | . . . 31 . Level 3 9 | . . . 14 . Level 4 . | . . . . . Level 5 . | . . . . . High Security . | . . . . . Max Security . | . . . . . Squads Dispatched 4 | . . . 4 . Investigation 1 | . . . 1 . Extermination . | . . . . . Reinforcement 3 | . . . 3 . Assault . | . . . . . Garrison . | . . . . . Intercept . | . . . . . Searches Triggered . | . . . . . Construction Impeded 1 | . . . 1 . Haulers Reinforced . | . . . . . Active Scanning Responses . | . . . . . Cargo Convoy Interrupts . | . . . . . Stealth | -11 -10 -10 -9 -9 --------- Run | Yrd Mat Min Mat Min Distress Signals 3 | . . . 3 . Communications Jammed . | . . . . . Distress Signals . | . . . . . Times Spotted 66 | . 5 4 52 5 Peak Tracking Total 7 | . 3 2 7 3 Tactical Retreats 2 | . . . 2 . Traps | -11 -10 -10 -9 -9 ------- Run | Yrd Mat Min Mat Min Traps Triggered 6 | . . . 6 . Indirectly . | . . . . . Trap Hack Attempts . | . . . . . Triggered . | . . . . . Disarmed . | . . . . . Reprogrammed . | . . . . . Reused . | . . . . . Traps Extracted . | . . . . . Installed . | . . . . . Triggered . | . . . . . Most Traps Carried 2 | . . 2 2 . Machines | -11 -10 -10 -9 -9 ---------- Run | Yrd Mat Min Mat Min Machines Disabled 9 | . . 1 8 . Max in Single Turn 3 | . . 1 3 . Machines Repaired . | . . . . . Machines Dismantled . | . . . . . Machines Sabotaged . | . . . . . Overloaded Fab Kills . | . . . . . Hacking | -11 -10 -10 -9 -9 --------- Run | Yrd Mat Min Mat Min Machines Accessed 6 | . 2 . 4 . Terminals 5 | . 2 . 3 . Fabricators . | . . . . . Repair Stations 1 | . . . 1 . Recycling Units . | . . . . . Scanalyzers . | . . . . . Garrison Access . | . . . . . Total Hacks 17 | . 6 . 11 . Successful 8 | . 2 . 6 . Failed 9 | . 4 . 5 . Catastrophic 2 | . . . 2 . Database Lockouts . | . . . . . Manual 7 | . 2 . 5 . Terminals 12 | . 6 . 6 . Fabricators . | . . . . . Repair Stations 5 | . . . 5 . Recycling Units . | . . . . . Scanalyzers . | . . . . . Garrison Access . | . . . . . Terminal Hacks 3 | . 2 . 1 . Record 1 | . 1 . . . Emergency Access Points 1 | . . . 1 . Zone Layout 1 | . 1 . . . Fabricator Hacks . | . . . . . Repair Station Hacks 4 | . . . 4 . Scan Component 2 | . . . 2 . Repair 2 | . . . 2 . Recycling Unit Hacks . | . . . . . Scanalyzer . | . . . . . Garrison Access Hacks . | . . . . . Unauthorized Hacks 1 | . . . 1 . Terminals 1 | . . . 1 . Botnet 1 | . . . 1 . Fabricators . | . . . . . Repair Stations . | . . . . . Recycling Units . | . . . . . Scanalyzers . | . . . . . Garrison Access . | . . . . . Data Cores Recovered . | . . . . . Used . | . . . . . Hacking Detections 4 | . 2 . 2 . Full Trace Events . | . . . . . Feedback Events . | . . . . . Feedback Blocked . | . . . . . Robot Schematics Acquired . | . . . . . Robots Built . | . . . . . Authchips . | . . . . . Time . | . . . . . Total Robot Build Rating . | . . . . . Part Schematics Acquired . | . . . . . Parts Built . | . . . . . Authchips . | . . . . . Time . | . . . . . Total Part Build Rating . | . . . . . Parts Repaired 2 | . . . 2 . Time 52 | . . . 52 . Parts Recycled . | . . . . . Recycled Matter . | . . . . . Retrieved Matter . | . . . . . Retrieved Components . | . . . . . Parts Scanalyzed . | . . . . . Part Schematics Acquired . | . . . . . Parts Damaged . | . . . . . Bothacking | -11 -10 -10 -9 -9 ------------ Run | Yrd Mat Min Mat Min Used RIF Installer . | . . . . . Robots Hacked . | . . . . . Non-combat . | . . . . . Combat . | . . . . . Robot Hacks Applied . | . . . . . Relay Couplers Released . | . . . . . Fabnet Peak Effective % . | . . . . . Robots Rewired . | . . . . . Allies Hacked . | . . . . . Hacks Repelled . | . . . . . Allies | -11 -10 -10 -9 -9 -------- Run | Yrd Mat Min Mat Min Total Allies 1 | . . . . 1 Largest Group 1 | . . . . 1 Highest-Rated Group 31 | . . . . 31 Highest-Rated Ally 31 | . . . . 31 Total Orders . | . . . . . Ally Attacks 12 | . . . . 12 Total Damage 189 | . . . . 189 Kills 1 | . . . . 1 Allies Corrupted . | . . . . . Allies Melted . | . . . . . Intel | -11 -10 -10 -9 -9 ------- Run | Yrd Mat Min Mat Min Robot Analysis Total . | . . . . . Derelict Logs Recovered 3 | . . 2 . 1 Drone Launches . | . . . . . Drone Recoveries . | . . . . . Exploration | -11 -10 -10 -9 -9 ------------- Run | Yrd Mat Min Mat Min Turns Passed 2930 | 92 302 372 1811 353 Spaces Moved 1562 | 55 168 208 872 259 Core 23 | 9 . . 14 . Treads 1277 | 46 168 208 839 16 Legs . | . . . . . Wheels 262 | . . . 19 243 Hover . | . . . . . Flight . | . . . . . Fastest Speed 50 | 50 160 160 95 110 Average Speed 152 | 142 160 160 161 113 Slowest Speed 300 | 160 160 160 300 160 Overloaded Moves . | . . . . . Propulsion Burnouts . | . . . . . Robots Hopped . | . . . . . Cave-ins Triggered . | . . . . . Exploration Rate (%) 43 | 4 33 54 71 55 Regions Visited 4 Branch Regions 2 Pre-discovered Areas 1 | . . 1 . . Known Exits Taken . | . . . . . Unknown Exits Taken 4 | 1 1 1 1 . Scrap Searched 3 | . . 1 . 2 Spaces Dug 4 | . . . 4 . Terrain Destroyed 345 | . 39 40 262 4 Melee . | . . . . . Projectile . | . . . . . AOE 345 | . 39 40 262 4 Terrain Rammed . | . . . . . Walls Destroyed . | . . . . . Machines Disabled . | . . . . . Actions | -11 -10 -10 -9 -9 --------- Run | Yrd Mat Min Mat Min Total 1921 | 66 187 237 1127 304 Wait 122 | . 1 15 81 25 Move 1558 | 54 167 207 871 259 Hop . | . . . . . Pick Up 32 | 6 3 3 17 3 Fast Attach 40 | 6 3 . 30 1 Attach 1 | . . . 1 . Detach 5 | . 1 . 3 1 Swap 17 | . . 2 13 2 Drop 37 | . 3 4 26 4 Fire 107 | . 9 6 83 9 Melee . | . . . . . Ram . | . . . . . Kick . | . . . . . Crush 2 | . . . 2 . Escape Stasis . | . . . . . Rewire . | . . . . . Trap . | . . . . . Miscellaneous . | . . . . . Route ------- -11/Scrapyard -10/Materials -10/Mines (discovered 2 exits: *Mat x2) -9/Materials (discovered 3 exits: [*Mat x2] / [*Min]) -9/Mines (discovered 1 exit: [*Mat]) History --------- Turn | Location | Event 2 | -11/Scrapyard | Met Revision 17 7 | -11/Scrapyard | Discovered new exit (range 15) 93 | -11/Scrapyard | Entered Materials 306 | -10/Materials | Build established: Mutant 347 | -10/Materials | Discovered new exit (range 12) 395 | -10/Materials | Entered Mines 395 | -10/Mines | Discovered new exit (range 8) 564 | -10/Mines | Found a hidden stash of uninstalled traps 698 | -10/Mines | Learned Materials interactive machine intel 711 | -10/Mines | Discovered new exit (range 15) 751 | -10/Mines | Learned location of Zion (-6) 767 | -10/Mines | Entered Materials 767 | -9/Materials | Evolved 2 slots: Utility x2 768 | -9/Materials | Loaded intel: 18 interactive machine locations 1527 | -9/Materials | Core integrity fell below 50% 1566 | -9/Materials | Lost 3 parts (1n2w) 1903 | -9/Materials | Discovered new exit (range 7) 1976 | -9/Materials | Repaired Lgt. Treads 2004 | -9/Materials | Repaired Structural Scanner 2199 | -9/Materials | Core integrity fell below 20% 2310 | -9/Materials | Build established: Scavenger-Mutant 2354 | -9/Materials | Discovered new exit (range 15) 2554 | -9/Materials | Discovered new exit (range 16) 2578 | -9/Materials | Entered Mines 2655 | -9/Mines | Discovered new exit (range 11) 2705 | -9/Mines | Learned location of 1 exit from Materials 2733 | -9/Mines | Received a Mining Laser from a helpful Derelict 2931 | -9/Mines | Destroyed by G-34 Mercenary with Small Laser Last Messages --------------- 02667_ Acquired 69 matter. 02705_ Acquired derelict log, extracted data. Data stored: Materials exits (x1). 02731_ A derelict emerges from the shadows: "What are you doing alone down here?" 02733_ ZE-HOR(g): "And why aren't you carrying a mining laser?! Certainly you don't want THEM to uncover you when the ceiling comes crashing down? Here, take my spare." 02736_ ZE-HOR(g): "You're apparently new around these parts, I'll cover you." 02737_ Dropped Lgt. Treads. 02738_ Acquired Mining Laser. 02739_ ZE-HOR(g): "Mining lasers are a lot more useful than you might think..." 02789_ T-07 Excavator is excavating. 02796_ U-05 Engineer lays Concrete. 02846_ ZE-HOR(g) overheating. 02848_ G-47 Trooper destroyed. 02860_ G-34 Mercenary destroyed. 02863_ Acquired 43 matter. 02864_ Acquired 40 matter. 02866_ Dropped Heat Sink. 02866_ Acquired Imp. Heat Sink. 02928_ Grenade Launcher destroyed. Map ----- +----------------------------------------------------+ | ?????????????????????????????????????## | | ???????????????????????????????????? ### | | ??????????????????????????????????? #### | | ?????????????????????????????????? ####? | | ?????????????????????????????###?? ###??? | | ?????????????????????????????## #####?? | | ?????????????????????????????## ######?? | | ?????????????????????????????## ?? ### ##?? | | ?????????????????????????????????? ##### ### ##?? | | ?????????????????????????????? ?????#### ### ##?? | | ?????????????????????????????# ? ###?## ??## #### | | ?????????????????????????????## ####### ### #### | | ?????????????????????????????## ## ## ### | | ?????????????????????????????## # | | ?????????????????????????????## # ## | | ????????????????????????????### ## | | ????????????????????????????### #### ## | | ????????????????????????????## ######## ### | | ????????????????????????????## ####??#### ### | | ???????????? ???### ???????## ###????### ##? | | ???????????? #### ???????### #####??## ##? | | ?????????? ## ????????### #####??## ##? | | ??????????## ggg #####?### ##??## ##? | | ??????????# #######?## ## ###### ### | | ??????????????## ###?## ## ###### ### | | ??????????????### @ ####### ## | | ???????????????## ####### ## | | ???????????????## g ######## #### | | ???????????????### # ######## #### | | ???????????????#### ##############????## #### | | ????????????????#### ###############????## ### | | ?????????????????#### ###???????????????#### ## | | ??????????????????#######????????????????#### ## | | ???????????????????#####?????????????????## | | ?????????????????????????????????????????## #### | | ?????????????????????????????????????????## #### | | ??????????????????????????????????????##### #### | | ???????????????????????????################ ### | | ???????????????????????????############# ## | | ???????????????????????????## #### #### | | ???????????????????????????## #### #### | | ???????????????????????????##""" #### ### | | ???????????????????????????##""" ! ## ### | | ???????????????????????????##""" ###### ### | | ???????????????????????????## ###### ##?? | | ???????????????????????????##""" ##??## ##?? | | ???????????????????????????##""" ##??### ##??? | | ???????????????????????????##""" ##??#######??? | | ???????????????????????????## ##???#####???? | | ???????????????????????????## ##???????????? | +----------------------------------------------------+ Best States ------------- Heat Dissipation 38 Energy Generation 14 Energy Capacity 280 Matter Stores 500 Matter Capacity 650 Sight Range 16 Terrain Scan Density 85 Armor Coverage 225 Propulsion Shielding 33 Evasion (%) 41 Recoil Reduction 2 Item Schematics ----------------- None Robot Schematics ------------------ None Fabricated ------------ Nothing Alien Tech Used ----------------- None Achievements -------------- None Challenges ------------ None Game ------ Seed TerrabombSegregatorCore Manual? 0 Play Time 00:29:40 Cumulative 32.4 hours Start 2025.03.04 @ 20:05:44 End 2025.03.04 @ 20:44:32 Sessions 1 Manual Loads 0 Difficulty Rogue Special Mode None Game No. 27 Rogue 27 Adventurer 0 Explorer 0 Win Type - Total 0 Types 0/0/0/0/0/0/0/0/0 Lore% 12 Gallery% 34 Achievement% 25 Wizard Run 0 Options --------- Layout 0 ASCII 0 Keyboard 1 Movement Numpad Keybinds 0 Fullscreen 0 Font 16/SmallcapsGlow Map View 88x55 Zoom Use 0% Tactical HUD 1 Map Filters NONE Filters NONE Steam 1 RUN: 8ca3f98d-3997-4414-84f2-ec709dd08232